Cogmind - Beta 14 @@@ ROGUE MODE // 2024.10.19 @ 00:44:24 Player: Sacrath Result: Self-destructed Performance ------------- Evolutions (2) 1000 Regions Visited (4) 800 Robots Destroyed (24) 120 Value Destroyed (604) 604 Prototype IDs (2) 40 Alien Tech Used (0) 0 Bonus (0) 0 TOTAL SCORE: 2564 Bonus ------- None Cogmind --------- Core Integrity 506/550 Matter 215/300 Energy 455/455 System Corruption 0% Temperature Warm (156) Movement Core (800) Ox15 Location -8/Materials Parts ------- > --- POWER (2) -------- Heavy Ion Engine Deuterium Engine > --- PROPULSION (4) --- (None) > --- UTILITY (3) ------ Large Storage Unit Improved Terrain Scanner Hardlight Generator > --- WEAPON (2) ------- Grenade Launcher Improved Datajack > --- INVENTORY (15) --- Ion Engine Light Ion Engine High-capacity Matter Pod (200) Visual Processing Unit Advanced Beam Cannon Assault Rifle Datajack Mace Peak State ------------ > --- POWER ------------ Heavy Ion Engine Deuterium Engine > --- PROPULSION ------- Light Treads Light Treads Light Treads > --- UTILITY ---------- Large Storage Unit Improved Terrain Scanner Hardlight Generator > --- WEAPON ----------- Advanced Beam Cannon Advanced Beam Cannon > --- INVENTORY -------- Ion Engine Light Ion Engine High-capacity Matter Pod Visual Processing Unit Assault Rifle Grenade Launcher Datajack Mace [Rating: 23] Favorites ----------- Power Heavy Ion Engine Engine Heavy Ion Engine Propulsion Light Treads Treads Light Treads Utility Large Storage Unit Device Improved Terrain Scanner Storage Large Storage Unit Weapon Advanced Beam Cannon Energy Cannon Advanced Beam Cannon Ballistic Gun Assault Rifle Ballistic Cannon Light Cannon Launcher Grenade Launcher Special Melee Weapon Improved Datajack Build | -11 -10 -9 -9 -8 ------- Run | Yrd Mat Mat Min Mat Slots Evolved 4 | . . 2 . 2 Power 1 | . . . . 1 Propulsion 2 | . . 1 . 1 Utility 1 | . . 1 . . Weapon . | . . . . . Parts Attached 21 | 5 8 3 1 4 Power 4 | 1 1 1 . 1 Engine 4 | 1 1 1 . 1 Core . | . . . . . Reactor . | . . . . . Propulsion 5 | 2 1 2 . . Treads 5 | 2 1 2 . . Leg . | . . . . . Wheel . | . . . . . Hover . | . . . . . Flight . | . . . . . Utility 5 | 1 2 . 1 1 Device 3 | . 1 . 1 1 Storage 2 | 1 1 . . . Processor . | . . . . . Hackware . | . . . . . Protection . | . . . . . Artifact . | . . . . . Weapon 7 | 1 4 . . 2 Energy Gun . | . . . . . Energy Cannon 3 | . 3 . . . Ballistic Gun 1 | 1 . . . . Ballistic Cannon 1 | . 1 . . . Launcher 1 | . . . . 1 Special Weapon . | . . . . . Impact Weapon . | . . . . . Slashing Weapon . | . . . . . Piercing Weapon . | . . . . . Special Melee Weapon 1 | . . . . 1 Unidentified Prototypes 2 | . 1 1 . . Parts Lost 4 | . . 1 . 3 Power . | . . . . . Propulsion 3 | . . . . 3 Utility 1 | . . 1 . . Weapon . | . . . . . Highest Loss Streak 3 | . . 1 . 3 To Critical Strikes . | . . . . . Average Slot Usage (%) 89 | . 93 84 87 83 Engine 12 | . 14 11 11 17 Treads 30 | . 28 33 33 25 Device 9 | . 9 7 10 15 Storage 12 | . 14 11 11 9 Energy Cannon 13 | . 4 22 22 12 Ballistic Gun 4 | . 11 . . . Ballistic Cannon 4 | . 10 . . . Peak Build Rating 23 | 5 11 14 17 23 Average Rating 11 | 3 7 12 16 20 On Entrance 9 | . 5 11 13 17 Naked Turns . | . . . . . Heaviest Build 51 | 12 34 37 37 51 Greatest Support 60 | 40 40 60 60 60 Greatest Overweight (x) . | . . . . . Average Overweight (x) . | . . . . . Largest Inventory Capacity 15 | 8 15 15 15 15 Average Capacity 12 | 5 9 15 15 15 Most Carried 9 | 2 7 8 8 9 Average Carried 5 | . 2 6 7 8 Final Capacity 15 | 8 15 15 15 15 Final Carried 8 | 1 7 7 8 8 Class Distribution -------------------- 100% | Mutant Dominant Class ---------------- Mutant | -10/Materials Mutant | -9/Materials Mutant | -9/Mines Mutant | -8/Materials Resources | -11 -10 -9 -9 -8 ----------- Run | Yrd Mat Mat Min Mat Matter Collected 831 | 212 522 87 10 . Remotely . | . . . . . Salvage Created 765 | . 448 198 47 72 Parts 52 | . 34 8 5 5 Haulers Intercepted 3 | . 2 1 . . Recyclers Shooed 1 | . . . . 1 Parts Field Recycled . | . . . . . Retrieved Matter . | . . . . . Parts Self-Destructed . | . . . . . Prevented . | . . . . . Kills | -11 -10 -9 -9 -8 ------- Run | Yrd Mat Mat Min Mat Combat Hostiles Destroyed 13 | . 9 3 . 1 Guns 2 | . 2 . . . Cannons 11 | . 7 3 . 1 Classes Destroyed 7 | . 4 1 1 1 Builder 2 | . . . . 2 Tunneler 2 | . . . 2 . Hauler 3 | . 2 1 . . Operator 1 | . 1 . . . Watcher 3 | . 3 . . . Grunt 11 | . 9 2 . . Sentry 2 | . . 1 . 1 Best Kill Streak 3 | . 3 2 2 3 Combat Bots Only 3 | . 3 2 . 1 Max Kills in Single Turn 1 | . 1 1 1 1 Gunslinging . | . . . . . Exploded . | . . . . . Melee . | . . . . . Uniques/NPCs Destroyed . | . . . . . Combat | -11 -10 -9 -9 -8 -------- Run | Yrd Mat Mat Min Mat Hostile Shots Fired 140 | . 48 60 . 32 Missed 43 | . 20 14 . 9 Damage Taken 1310 | . 373 614 . 323 Core 170 | . 24 102 . 44 Absorbed by Shields 92 | . . . . 92 Core Remaining (%) 88 | 100 90 . 74 . Volleys Fired 84 | . 48 14 4 18 Largest 2 | . 2 2 2 1 Hottest 136 | . 136 136 136 68 Shots Fired 143 | . 89 28 8 18 Gun 42 | . 42 . . . Cannon 95 | . 47 28 8 12 Launcher 6 | . . . . 6 Special . | . . . . . Kinetic 77 | . 77 . . . Thermal 60 | . 12 28 8 12 Explosive 6 | . . . . 6 Electromagnetic . | . . . . . Robot Hit Streak 14 | . 8 7 9 14 Robot Miss Streak 4 | . 4 3 1 2 Penetration Max . | . . . . . Secondary Targets . | . . . . . Shots Hit Robots 89 | . 52 17 5 15 Core Hits 35 | . 20 4 1 10 Critical Kills 1 | . . 1 . . Critical Parts Destroyed . | . . . . . Critical Strikes 2 | . 1 1 . . Meltdown 1 | . . 1 . . Blast 1 | . 1 . . . Melee Attacks . | . . . . . Impact . | . . . . . Slashing . | . . . . . Piercing . | . . . . . Sneak Attacks . | . . . . . Combat Hostiles . | . . . . . Follow-up Attacks . | . . . . . Damage Inflicted 1552 | . 802 326 101 323 Guns 272 | . 272 . . . Cannons 1139 | . 530 326 101 182 Explosions 141 | . . . . 141 Melee . | . . . . . Ramming . | . . . . . Kinetic 659 | . 659 . . . Thermal 752 | . 143 326 101 182 Explosive 141 | . . . . 141 Electromagnetic . | . . . . . Impact . | . . . . . Slashing . | . . . . . Piercing . | . . . . . Highest Corruption . | . . . . . Average Corruption . | . . . . . Corruption Purged . | . . . . . Corruption Blocked . | . . . . . Overload Shots . | . . . . . Overflow Damage 28 | . . 11 10 7 Projectiles 28 | . . 11 10 7 Explosions . | . . . . . Melee . | . . . . . Knockbacks 5 | . 5 . . . Impact . | . . . . . Kinetic 5 | . 5 . . . Secondary . | . . . . . Self-Inflicted Damage 83 | . . . . 83 Shots 5 | . . . . 5 Rammed . | . . . . . Targets Rammed . | . . . . . Kicked . | . . . . . Crushed . | . . . . . Highest Temperature 359 | . 96 276 138 359 Average Temperature 92 | . 26 96 55 172 Received Heat Transfer 648 | . 186 357 . 105 Effects 2 | . . 1 . 1 Shutdowns 1 | . . . . 1 Energy Bleed 1 | . . 1 . . Siege Activations . | . . . . . Robots Corrupted . | . . . . . Combat Hostiles . | . . . . . Parts Fried . | . . . . . Impact Corruptions . | . . . . . Robots Melted 1 | . . 1 . . Combat Hostiles . | . . . . . Parts Melted 3 | . . 2 . 1 Heat Transferred 1369 | . 259 592 185 333 Parts Sabotaged . | . . . . . Parts Stolen . | . . . . . Parts Stripped . | . . . . . Power Chain Reactions . | . . . . . Alert | -11 -10 -9 -9 -8 ------- Run | Yrd Mat Mat Min Mat Peak Influence 261 | . 261 166 70 50 Initial 60 | . . 33 60 . Average 79 | . 117 100 61 11 Maximum Alert Level 1 | . 1 . . . Low Security (%) 89 | 100 72 100 100 100 Level 1 10 | . 27 . . . Level 2 . | . . . . . Level 3 . | . . . . . Level 4 . | . . . . . Level 5 . | . . . . . High Security . | . . . . . Max Security . | . . . . . Squads Dispatched 5 | . 3 1 . 1 Investigation 2 | . 2 . . . Extermination . | . . . . . Reinforcement 3 | . 1 1 . 1 Assault . | . . . . . Garrison . | . . . . . Intercept . | . . . . . Searches Triggered . | . . . . . Construction Impeded . | . . . . . Haulers Reinforced . | . . . . . Active Scanning Responses . | . . . . . Cargo Convoy Interrupts . | . . . . . Stealth | -11 -10 -9 -9 -8 --------- Run | Yrd Mat Mat Min Mat Distress Signals 2 | . 1 1 . . Communications Jammed . | . . . . . Distress Signals . | . . . . . Times Spotted 27 | . 15 10 . 2 Peak Tracking Total 6 | . 6 5 . 3 Tactical Retreats . | . . . . . Traps | -11 -10 -9 -9 -8 ------- Run | Yrd Mat Mat Min Mat Traps Triggered 2 | . 2 . . . Indirectly . | . . . . . Trap Hack Attempts . | . . . . . Triggered . | . . . . . Disarmed . | . . . . . Reprogrammed . | . . . . . Reused . | . . . . . Traps Extracted . | . . . . . Installed . | . . . . . Triggered . | . . . . . Machines | -11 -10 -9 -9 -8 ---------- Run | Yrd Mat Mat Min Mat Machines Disabled 2 | . 2 . . . Max in Single Turn 1 | . 1 . . . Machines Repaired . | . . . . . Machines Dismantled . | . . . . . Machines Sabotaged . | . . . . . Overloaded Fab Kills . | . . . . . Hacking | -11 -10 -9 -9 -8 --------- Run | Yrd Mat Mat Min Mat Machines Accessed 4 | . 3 1 . . Terminals 4 | . 3 1 . . Fabricators . | . . . . . Repair Stations . | . . . . . Recycling Units . | . . . . . Scanalyzers . | . . . . . Garrison Access . | . . . . . Total Hacks 7 | . 5 2 . . Successful 3 | . 2 1 . . Failed 4 | . 3 1 . . Catastrophic 1 | . 1 . . . Database Lockouts . | . . . . . Manual 3 | . 3 . . . Terminals 7 | . 5 2 . . Fabricators . | . . . . . Repair Stations . | . . . . . Recycling Units . | . . . . . Scanalyzers . | . . . . . Garrison Access . | . . . . . Terminal Hacks 3 | . 2 1 . . Emergency Access Points 1 | . 1 . . . Unreport Threat 1 | . 1 . . . Recall Investigation 1 | . . 1 . . Fabricator Hacks . | . . . . . Repair Station Hacks . | . . . . . Recycling Unit Hacks . | . . . . . Scanalyzer . | . . . . . Garrison Access Hacks . | . . . . . Unauthorized Hacks . | . . . . . Terminals . | . . . . . Fabricators . | . . . . . Repair Stations . | . . . . . Recycling Units . | . . . . . Scanalyzers . | . . . . . Garrison Access . | . . . . . Data Cores Recovered . | . . . . . Used . | . . . . . Hacking Detections 2 | . 1 1 . . Full Trace Events 1 | . 1 . . . Feedback Events . | . . . . . Feedback Blocked . | . . . . . Robot Schematics Acquired . | . . . . . Robots Built . | . . . . . Authchips . | . . . . . Time . | . . . . . Total Robot Build Rating . | . . . . . Part Schematics Acquired . | . . . . . Parts Built . | . . . . . Authchips . | . . . . . Time . | . . . . . Total Part Build Rating . | . . . . . Parts Repaired . | . . . . . Time . | . . . . . Parts Recycled . | . . . . . Recycled Matter . | . . . . . Retrieved Matter . | . . . . . Retrieved Components . | . . . . . Parts Scanalyzed . | . . . . . Part Schematics Acquired . | . . . . . Parts Damaged . | . . . . . Bothacking | -11 -10 -9 -9 -8 ------------ Run | Yrd Mat Mat Min Mat Used RIF Installer . | . . . . . Robots Hacked . | . . . . . Non-combat . | . . . . . Combat . | . . . . . Robot Hacks Applied . | . . . . . Relay Couplers Released . | . . . . . Fabnet Peak Effective % . | . . . . . Robots Rewired . | . . . . . Allies Hacked . | . . . . . Hacks Repelled . | . . . . . Allies | -11 -10 -9 -9 -8 -------- Run | Yrd Mat Mat Min Mat Total Allies . | . . . . . Largest Group . | . . . . . Highest-Rated Group . | . . . . . Highest-Rated Ally . | . . . . . Total Orders . | . . . . . Ally Attacks . | . . . . . Total Damage . | . . . . . Kills . | . . . . . Allies Corrupted . | . . . . . Allies Melted . | . . . . . Intel | -11 -10 -9 -9 -8 ------- Run | Yrd Mat Mat Min Mat Robot Analysis Total . | . . . . . Derelict Logs Recovered . | . . . . . Drone Launches . | . . . . . Drone Recoveries . | . . . . . Exploration | -11 -10 -9 -9 -8 ------------- Run | Yrd Mat Mat Min Mat Turns Passed 1383 | 99 530 182 452 120 Spaces Moved 693 | 59 230 84 273 47 Core 5 | 5 . . . . Treads 688 | 54 230 84 273 47 Legs . | . . . . . Wheels . | . . . . . Hover . | . . . . . Flight . | . . . . . Fastest Speed 50 | 50 160 160 160 160 Average Speed 159 | 150 160 160 160 160 Slowest Speed 160 | 160 160 160 160 160 Overloaded Moves . | . . . . . Propulsion Burnouts . | . . . . . Robots Hopped . | . . . . . Cave-ins Triggered . | . . . . . Exploration Rate (%) 25 | 5 41 15 61 7 Regions Visited 4 Branch Regions 1 Pre-discovered Areas . | . . . . . Known Exits Taken . | . . . . . Unknown Exits Taken 4 | 1 1 1 1 . Scrap Searched 1 | . . . 1 . Spaces Dug . | . . . . . Terrain Destroyed 6 | . . . . 6 Melee . | . . . . . Projectile . | . . . . . AOE 6 | . . . . 6 Terrain Rammed . | . . . . . Walls Destroyed . | . . . . . Machines Disabled . | . . . . . Actions | -11 -10 -9 -9 -8 --------- Run | Yrd Mat Mat Min Mat Total 830 | 69 304 103 281 73 Wait 3 | . 3 . . . Move 689 | 58 229 83 272 47 Hop . | . . . . . Pick Up 26 | 6 12 2 3 3 Fast Attach . | . . . . . Attach 15 | 5 5 1 1 3 Detach . | . . . . . Swap 6 | . 3 2 . 1 Drop 7 | . 4 1 1 1 Fire 84 | . 48 14 4 18 Melee . | . . . . . Ram . | . . . . . Kick . | . . . . . Crush . | . . . . . Escape Stasis . | . . . . . Rewire . | . . . . . Trap . | . . . . . Miscellaneous . | . . . . . Route ------- -11/Scrapyard -10/Materials -9/Materials -9/Mines (discovered 2 exits: [*Mat x2]) -8/Materials History --------- Turn | Location | Event 26 | -11/Scrapyard | Discovered new exit (range 16) 100 | -11/Scrapyard | Entered Materials 303 | -10/Materials | Build established: Mutant 621 | -10/Materials | Discovered new exit (range 7) 630 | -10/Materials | Entered another Materials area 630 | -9/Materials | Evolved 2 slots: Propulsion x1, Utility x1 804 | -9/Materials | Discovered new exit (range 6) 812 | -9/Materials | Entered Mines 1105 | -9/Mines | Discovered new exit (range 16) 1137 | -9/Mines | Discovered new exit (range 15) 1264 | -9/Mines | Entered Materials 1264 | -8/Materials | Evolved 2 slots: Power x1, Propulsion x1 1384 | -8/Materials | Self-destructed Last Messages --------------- Destroyed Heat Sink. Y-45 Defender heat damages Beam Rifle, Heat Sink, Lgt. Treads. Destroyed Lgt. Treads. Critical hit (Burn: +27). Y-45 Defender heat short circuits Imp. Ion Engine. Heat Sink melted. Y-45 Defender destroyed. Power failure, Deuterium Engine shutdown. Acquired Imp. Datajack. ALERT: Suspicious intruders detected, dispatching Specialist reinforcements to area. Critical hit (Burn: +26). Lgt. Treads destroyed. U-05 Engineer destroyed. U-05 Engineer lays Concrete. Lgt. Treads destroyed. U-05 Engineer builds a Wall. Lgt. Treads destroyed. Map ----- +----------------------------------------------------+ | ?????????????????????????????????????????????????? | | ?????????????????????????????????????????????????? | | ?????????????????????????????????????????????????? | | ?????????????????????????????????????????????????? | | ?????????????????????????????????????????????????? | | ?????????????????????????????????????????????????? | | ?????????????????????????????????????????????????? | | ?????????????????????????????????????????????????? | | ?????????????????????????????????????????????????? | | ?????????????????????????????????????????????????? | | ?????????????????????????????????????????????????? | | ?????????????????????????????????????????????????? | | ?????????????????????????????????????????????????? | | ?????????????????????????????????????????????????? | | ???????????????????? ????????????????????????????? | | ????????????????"???????????????????H????????????? | | ????????????????"?? ?????????????????????????????? | | ???????????????????????#?????????????????????????? | | ????????????????###+##?#???????#?????????????????? | | ????????????????? ?? ????????????????????????? | | ????????????????? ????????????????#??????????? | | ????????????????? ???????????????????????????? | | ???????????#?????# #???????????????????????????? | | ?????????????????# ###?????????????????????????? | | ?????????????????# #%########??????????????????? | | ?????????????????# #= @* T #??????????????????? | | ?????? ??????????# | * #??????????????????? | | ??????????? ?????# #??????????????????? | | ?????????????????# Y #??????????????????? | | ?????????????????# ##???????#?????????? | | ?????????? ??????# """ #??????#??#????????? | | ????????????#???## "" #??????????????????? | | ?????????????#???# # = """ ##???#?????????????? | | ?????????????????# #[ #??????????????????? | | ???????????????### ##########??????????????????? | | ???? ????????????# #?#??????#??????????????????? | | ?????????????????#u #??????#??#?????????????????? | | ?????? ??????????# ##??????#???? ??????????????? | | ????????????????## ###########???? ????????????? | | ????????########## # #?? ??????????????? | | ??????#?# # # #?? ??????????????? | | ????????# # # #?????????????????? | | ????????# # # #???? ????????????? | | ??????#?# + + #?????????????????? | | ????????# # # """ """ #???????"?????????? | | ????????# # # """ """ #?????????????????? | | ????????# # # """ """ #?????????????????? | | ????????# ###############?????????????????? | | ????????# #??????#????????????????????????? | | ????????##########???????????????????????????????? | +----------------------------------------------------+ Best States ------------- Heat Dissipation 38 Energy Generation 23 Energy Capacity 455 Matter Stores 300 Matter Capacity 300 Sight Range 16 Terrain Scan Range 16 Terrain Scan Density 10 Evasion (%) 40 Recoil Reduction 3 Item Schematics ----------------- None Robot Schematics ------------------ None Fabricated ------------ Nothing Alien Tech Used ----------------- None Achievements -------------- None Challenges ------------ None Game ------ Seed CloakPotentialBattery Manual? 0 Play Time 00:11:32 Cumulative 35.9 hours Start 2024.10.19 @ 00:33:42 End 2024.10.19 @ 00:44:24 Sessions 1 Manual Loads 0 Difficulty Rogue Special Mode None Game No. 55 Rogue 6 Adventurer 49 Explorer 0 Win Type - Total 2 Types 2/0/0/0/0/0/0/0/0 Lore% 15 Gallery% 42 Achievement% 37 Wizard Run 0 Options --------- Layout 1 ASCII 0 Keyboard 0 Movement Mouse Keybinds 0 Fullscreen 1 Font 24/Smallcaps Map View 50x35 Zoom Use 0% Tactical HUD 0 Map Filters NONE Filters NONE Steam 1 RUN: bb2e3dc5-54e8-45e3-bf9a-f0e0e42b1bb0